[Event "FIDE Grand Swiss 2023"]
[Site "Villa Marina, Douglas, Isle of Man"]
[Date "2023.10.25"]
[Round "1.21"]
[White "Theodorou, Nikolas"]
[Black "Sevian, Samuel"]
[Result "0-1"]
[WhiteElo "2619"]
[BlackElo "2698"]
[EventDate "2023.10.25"]
[ECO "E15"]
[PlyCount "106"]
[BlackFideId "2040506"]
[TimeControl "40/100 + 20/50 + 15 + 30s/move"]
[WhiteFideId "4262875"]

1.d4 {[%clk 01:40:55] [%emt 00:00:03]} 1...Nf6 {[%clk 01:40:50] [%emt 00:00:11]} 
2.c4 {[%clk 01:41:12] [%emt 00:00:12]} 2...e6 {[%clk 01:41:13] [%emt 00:00:08]} 
3.Nf3 {[%clk 01:41:36] [%emt 00:00:05]} 3...b6 {[%clk 01:40:06] [%emt 00:01:38]} 
4.g3 {[%clk 01:41:43] [%emt 00:00:23]} 4...Ba6 {[%clk 01:40:30] [%emt 00:00:07]} 
5.b3 {[%clk 01:42:00] [%emt 00:00:13]} 5...Bb4+ {[%clk 01:40:41] [%emt
00:00:18]} 6.Bd2 {[%clk 01:42:23] [%emt 00:00:06]} 6...Be7 {[%clk 01:41:06]
[%emt 00:00:06]} 7.Bg2 {[%clk 01:41:09] [%emt 00:01:43]} 7...d5 {[%clk 01:41:06]
[%emt 00:00:31]} 8.O-O {[%clk 01:38:44] [%emt 00:02:55]} 8...O-O {[%clk
01:40:07] [%emt 00:01:29]} 9.Ne5 {[%clk 01:30:31] [%emt 00:08:42]} 9...Bb7 
{[%clk 01:29:14] [%emt 00:11:24]} 10.Nc3 {[%clk 01:20:13] [%emt 00:10:48]} 
10...Nbd7 {[%clk 01:28:50] [%emt 00:00:54]} 11.Bf4 {[%clk 01:01:17] [%emt
00:19:26]} 11...c5 {[%clk 01:22:21] [%emt 00:06:59]} 12.dxc5 {[%clk 00:53:44]
[%emt 00:08:04]} 12...Nxc5 {[%clk 01:17:00] [%emt 00:05:51]} 13.cxd5 {[%clk
00:50:23] [%emt 00:03:51]} 13...exd5 {[%clk 01:15:25] [%emt 00:02:05]} 14.Rc1 
{[%clk 00:40:03] [%emt 00:10:50]} 14...a6 {[%clk 00:52:31] [%emt 00:23:24]} 
15.Be3 {[%clk 00:30:20] [%emt 00:10:13]} 15...Rc8 {[%clk 00:40:00] [%emt
00:13:01]} 16.b4 {[%clk 00:24:32] [%emt 00:06:19]} 16...Ne6 {[%clk 00:37:14]
[%emt 00:03:15]} 17.Nxd5 {[%clk 00:19:27] [%emt 00:05:35]} 17...Rxc1 {[%clk
00:32:11] [%emt 00:05:34]} 18.Nxe7+ {[%clk 00:19:50] [%emt 00:00:07]} 18...Qxe7 
{[%clk 00:32:29] [%emt 00:00:11]} 19.Qxc1 {[%clk 00:20:01] [%emt 00:00:18]} 
19...Bxg2 {[%clk 00:32:44] [%emt 00:00:16]} 20.Kxg2 {[%clk 00:20:29] [%emt
00:00:02]} 20...Qxb4 {[%clk 00:33:05] [%emt 00:00:09]} 21.Qb1 {[%clk 00:14:32]
[%emt 00:06:27]} 21...Qc3 {[%clk 00:26:29] [%emt 00:07:06]} 22.Nf3 {[%clk
00:13:19] [%emt 00:01:43]} 22...Nd5 {[%clk 00:26:42] [%emt 00:00:17]} 23.Bd2 
{[%clk 00:11:53] [%emt 00:01:56]} 23...Qc4 {[%clk 00:27:10] [%emt 00:00:02]} 
24.Re1 {[%clk 00:06:41] [%emt 00:05:42]} 24...b5 {[%clk 00:25:00] [%emt
00:02:40]} 25.h3 {[%clk 00:05:16] [%emt 00:01:54]} 25...Re8 {[%clk 00:22:28]
[%emt 00:03:03]} 26.Ne5 {[%clk 00:03:56] [%emt 00:01:51]} 26...Qc7 {[%clk
00:21:14] [%emt 00:01:43]} 27.Nf3 {[%clk 00:04:12] [%emt 00:00:14]} 27...Qc4 
{[%clk 00:16:50] [%emt 00:04:54]} 28.Ne5 {[%clk 00:04:14] [%emt 00:00:28]} 
28...Qa4 {[%clk 00:15:17] [%emt 00:02:03]} 29.Nf3 {[%clk 00:03:20] [%emt
00:01:24]} 29...h6 {[%clk 00:15:11] [%emt 00:00:36]} 30.e4 {[%clk 00:01:14]
[%emt 00:02:35]} 30...Nb6 {[%clk 00:14:57] [%emt 00:00:45]} 31.Be3 {[%clk
00:00:48] [%emt 00:00:56]} 31...Nc4 {[%clk 00:15:00] [%emt 00:00:27]} 32.Qb3 
{[%clk 00:00:53] [%emt 00:00:25]} 32...Qa5 {[%clk 00:06:58] [%emt 00:08:32]} 
33.Re2 {[%clk 00:01:08] [%emt 00:00:16]} 33...Rd8 {[%clk 00:07:23] [%emt
00:00:04]} 34.Rc2 {[%clk 00:00:41] [%emt 00:00:57]} 34...Qc7 {[%clk 00:07:52]
[%emt 00:00:01]} 35.a4 {[%clk 00:00:35] [%emt 00:00:36]} 35...Nxe3+ {[%clk
00:02:55] [%emt 00:05:27]} 36.fxe3 {[%clk 00:01:03] [%emt 00:00:02]} 36...Qb7 
{[%clk 00:02:51] [%emt 00:00:34]} 37.Qb4 {[%clk 00:00:38] [%emt 00:00:55]} 
37...a5 {[%clk 00:00:50] [%emt 00:02:31]} 38.Qxb5 {[%clk 00:00:51] [%emt
00:00:17]} 38...Qxe4 {[%clk 00:01:19] [%emt 00:00:02]} 39.Rf2 {[%clk 00:00:49]
[%emt 00:00:31]} 39...Rd5 {[%clk 00:00:37] [%emt 00:01:12]} 40.Qe8+ {[%clk
00:00:35] [%emt 00:00:44]} 40...Kh7 {[%clk 00:01:06] [%emt 00:00:01]} 41.Qxf7 
{[%clk 00:42:57] [%emt 00:08:08]} 41...Rf5 {[%clk 00:43:46] [%emt 00:07:51]} 
42.Qd7 {[%clk 00:42:00] [%emt 00:01:26]} 42...Qxe3 {[%clk 00:29:44] [%emt
00:14:32]} 43.h4 {[%clk 00:27:20] [%emt 00:15:10]} 43...Qe4 {[%clk 00:26:02]
[%emt 00:04:12]} 44.Qd1 {[%clk 00:25:53] [%emt 00:01:57]} 44...Qg4 {[%clk
00:19:24] [%emt 00:07:07]} 45.Qf1 {[%clk 00:16:22] [%emt 00:10:01]} 45...Kh8 
{[%clk 00:10:51] [%emt 00:09:03]} 46.Qb1 {[%clk 00:05:08] [%emt 00:11:44]} 
46...Nf4+ {[%clk 00:09:01] [%emt 00:02:20]} 47.Kh1 {[%clk 00:05:37] [%emt
00:00:01]} 47...Nh5 {[%clk 00:03:49] [%emt 00:05:42]} 48.Qb8+ {[%clk 00:02:06]
[%emt 00:04:01]} 48...Kh7 {[%clk 00:04:17] [%emt 00:00:02]} 49.Kh2 {[%clk
00:02:18] [%emt 00:00:18]} 49...Nf6 {[%clk 00:02:39] [%emt 00:02:08]} 50.Kg2 
{[%clk 00:01:29] [%emt 00:01:19]} 50...Qe4 {[%clk 00:02:44] [%emt 00:00:25]} 
51.Rf1 {[%clk 00:00:32] [%emt 00:01:27]} 51...Ng4 {[%clk 00:02:35] [%emt
00:00:39]} 52.Kh3 {[%clk 00:00:32] [%emt 00:00:31]} 52...Ne3 {[%clk 00:02:54]
[%emt 00:00:11]} 53.Ng5+ {[%clk 00:00:33] [%emt 00:00:29]} 53...hxg5 {[%clk
00:03:15] [%emt 00:00:09]} 0-1

[Event "FIDE Grand Swiss 2023"]
[Site "Villa Marina, Douglas, Isle of Man"]
[Date "2023.10.25"]
[Round "1.22"]
[White "Shankland, Sam"]
[Black "Nguyen, Thai Dai Van"]
[Result "1/2-1/2"]
[WhiteElo "2698"]
[BlackElo "2618"]
[EventDate "2023.10.25"]
[ECO "D04"]
[PlyCount "96"]
[BlackFideId "358878"]
[TimeControl "40/100 + 20/50 + 15 + 30s/move"]
[WhiteFideId "2004887"]

1.d4 {[%clk 01:40:50] [%emt 00:00:08]} 1...Nf6 {[%clk 01:40:48] [%emt 00:00:12]} 
2.Nf3 {[%clk 01:41:15] [%emt 00:00:05]} 2...d5 {[%clk 01:41:03] [%emt 00:00:15]} 
3.e3 {[%clk 01:41:40] [%emt 00:00:06]} 3...c5 {[%clk 01:40:44] [%emt 00:00:49]} 
4.Nbd2 {[%clk 01:42:04] [%emt 00:00:06]} 4...Nc6 {[%clk 01:36:45] [%emt
00:04:28]} 5.dxc5 {[%clk 01:42:10] [%emt 00:00:25]} 5...e6 {[%clk 01:30:49]
[%emt 00:06:27]} 6.a3 {[%clk 01:42:13] [%emt 00:00:26]} 6...a5 {[%clk 01:31:00]
[%emt 00:00:19]} 7.b3 {[%clk 01:42:33] [%emt 00:00:10]} 7...Bxc5 {[%clk
01:31:23] [%emt 00:00:07]} 8.Bb2 {[%clk 01:42:39] [%emt 00:00:24]} 8...O-O 
{[%clk 01:31:36] [%emt 00:00:16]} 9.Bb5 {[%clk 01:43:06] [%emt 00:00:03]} 
9...Qe7 {[%clk 01:25:29] [%emt 00:06:37]} 10.O-O {[%clk 01:43:11] [%emt
00:00:26]} 10...Bd6 {[%clk 01:23:15] [%emt 00:02:44]} 11.Qe2 {[%clk 01:42:03]
[%emt 00:01:38]} 11...e5 {[%clk 01:19:29] [%emt 00:04:16]} 12.e4 {[%clk
01:39:12] [%emt 00:03:20]} 12...Nxe4 {[%clk 01:11:12] [%emt 00:08:48]} 13.Nxe4 
{[%clk 01:39:22] [%emt 00:00:20]} 13...dxe4 {[%clk 01:11:34] [%emt 00:00:08]} 
14.Qxe4 {[%clk 01:34:03] [%emt 00:05:50]} 14...f5 {[%clk 01:10:07] [%emt
00:01:57]} 15.Qh4 {[%clk 01:28:44] [%emt 00:05:48]} 15...Qxh4 {[%clk 01:02:38]
[%emt 00:07:59]} 16.Nxh4 {[%clk 01:29:06] [%emt 00:00:09]} 16...e4 {[%clk
00:55:14] [%emt 00:07:53]} 17.Rad1 {[%clk 01:24:51] [%emt 00:04:45]} 17...Be7 
{[%clk 00:44:05] [%emt 00:11:39]} 18.Bc4+ {[%clk 01:23:51] [%emt 00:01:30]} 
18...Kh8 {[%clk 00:44:32] [%emt 00:00:02]} 19.g3 {[%clk 01:23:58] [%emt
00:00:24]} 19...f4 {[%clk 00:41:10] [%emt 00:03:53]} 20.Ng2 {[%clk 01:15:04]
[%emt 00:09:24]} 20...fxg3 {[%clk 00:38:07] [%emt 00:03:33]} 21.hxg3 {[%clk
01:15:02] [%emt 00:00:32]} 21...Bf6 {[%clk 00:33:36] [%emt 00:05:01]} 22.Bxf6 
{[%clk 01:14:31] [%emt 00:01:01]} 22...Rxf6 {[%clk 00:33:15] [%emt 00:00:50]} 
23.Rfe1 {[%clk 00:58:02] [%emt 00:17:00]} 23...Bg4 {[%clk 00:32:19] [%emt
00:01:26]} 24.Be2 {[%clk 00:58:11] [%emt 00:00:21]} 24...Bf5 {[%clk 00:22:30]
[%emt 00:10:18]} 25.Ne3 {[%clk 00:53:51] [%emt 00:04:51]} 25...Raf8 {[%clk
00:22:51] [%emt 00:00:09]} 26.Nxf5 {[%clk 00:50:11] [%emt 00:04:10]} 26...Rxf5 
{[%clk 00:22:46] [%emt 00:00:35]} 27.Rf1 {[%clk 00:50:39] [%emt 00:00:03]} 
27...Ne5 {[%clk 00:18:41] [%emt 00:04:34]} 28.Rd4 {[%clk 00:49:14] [%emt
00:01:55]} 28...Nf3+ {[%clk 00:14:45] [%emt 00:04:26]} 29.Bxf3 {[%clk 00:49:39]
[%emt 00:00:05]} 29...exf3 {[%clk 00:14:00] [%emt 00:01:14]} 30.Re1 {[%clk
00:49:28] [%emt 00:00:41]} 30...Rc5 {[%clk 00:11:30] [%emt 00:03:01]} 31.c4 
{[%clk 00:45:20] [%emt 00:04:38]} 31...b5 {[%clk 00:09:03] [%emt 00:02:57]} 
32.Rf4 {[%clk 00:36:18] [%emt 00:09:31]} 32...Kg8 {[%clk 00:08:11] [%emt
00:01:23]} 33.Rxf8+ {[%clk 00:36:42] [%emt 00:00:06]} 33...Kxf8 {[%clk 00:08:38]
[%emt 00:00:03]} 34.Re3 {[%clk 00:36:02] [%emt 00:01:10]} 34...bxc4 {[%clk
00:07:11] [%emt 00:01:58]} 35.Rxf3+ {[%clk 00:36:28] [%emt 00:00:03]} 35...Ke7 
{[%clk 00:07:35] [%emt 00:00:06]} 36.Rc3 {[%clk 00:36:48] [%emt 00:00:11]} 
36...Kd6 {[%clk 00:03:35] [%emt 00:04:29]} 37.bxc4 {[%clk 00:37:13] [%emt
00:00:05]} 37...g5 {[%clk 00:01:00] [%emt 00:03:05]} 38.Kg2 {[%clk 00:32:38]
[%emt 00:05:05]} 38...Ke5 {[%clk 00:01:20] [%emt 00:00:10]} 39.Rc1 {[%clk
00:28:38] [%emt 00:04:30]} 39...Kd4 {[%clk 00:01:24] [%emt 00:00:26]} 40.Kh3 
{[%clk 00:28:13] [%emt 00:00:55]} 40...h5 {[%clk 00:00:53] [%emt 00:01:02]} 
41.f4 {[%clk 00:28:35] [%emt 00:00:07]} 41...gxf4 {[%clk 00:00:39] [%emt
00:00:43]} 42.gxf4 {[%clk 00:29:01] [%emt 00:00:04]} 42...Ke4 {[%clk 00:45:13]
[%emt 00:05:56]} 43.Kg3 {[%clk 01:19:08] [%emt 00:00:23]} 43...a4 {[%clk
00:45:13] [%emt 00:00:31]} 44.Rf1 {[%clk 01:17:41] [%emt 00:01:57]} 44...Rxc4 
{[%clk 00:44:02] [%emt 00:01:42]} 45.f5 {[%clk 01:17:50] [%emt 00:00:20]} 
45...Ke5 {[%clk 00:44:28] [%emt 00:00:04]} 46.f6 {[%clk 01:18:00] [%emt
00:00:20]} 46...Rg4+ {[%clk 00:43:54] [%emt 00:01:05]} 47.Kh3 {[%clk 01:18:24]
[%emt 00:00:05]} 47...Rg8 {[%clk 00:44:18] [%emt 00:00:04]} 48.Kh4 {[%clk
01:18:44] [%emt 00:00:11]} 48...Ke6 {[%clk 00:44:27]} 1/2-1/2

[Event "FIDE Grand Swiss 2023"]
[Site "Villa Marina, Douglas, Isle of Man"]
[Date "2023.10.25"]
[Round "1.23"]
[White "Ter-Sahakyan, Samvel"]
[Black "Artemiev, Vladislav"]
[Result "1/2-1/2"]
[WhiteElo "2618"]
[BlackElo "2697"]
[EventDate "2023.10.25"]
[ECO "C88"]
[PlyCount "60"]
[BlackFideId "24101605"]
[TimeControl "40/100 + 20/50 + 15 + 30s/move"]
[WhiteFideId "13302531"]

1.e4 {[%clk 01:40:51] [%emt 00:00:07]} 1...e5 {[%clk 01:40:28] [%emt 00:00:32]} 
2.Nf3 {[%clk 01:41:15] [%emt 00:00:06]} 2...Nc6 {[%clk 01:40:46] [%emt
00:00:13]} 3.Bb5 {[%clk 01:41:40] [%emt 00:00:05]} 3...a6 {[%clk 01:40:49] [%emt
00:00:27]} 4.Ba4 {[%clk 01:42:04] [%emt 00:00:06]} 4...Nf6 {[%clk 01:40:58]
[%emt 00:00:20]} 5.O-O {[%clk 01:42:12] [%emt 00:00:23]} 5...Be7 {[%clk
01:41:07] [%emt 00:00:20]} 6.Re1 {[%emt 00:05:57]} 6...b5 {[%clk 01:39:54]} 
7.Bb3 {[%clk 01:38:54] [%emt 00:00:04]} 7...O-O {[%clk 01:39:59] [%emt
00:00:25]} 8.a4 {[%clk 01:38:43] [%emt 00:00:42]} 8...Rb8 {[%clk 01:39:12] [%emt
00:01:17]} 9.axb5 {[%clk 01:38:45] [%emt 00:00:29]} 9...axb5 {[%clk 01:39:31]
[%emt 00:00:10]} 10.c3 {[%clk 01:38:40] [%emt 00:00:35]} 10...d6 {[%clk
01:35:20] [%emt 00:04:41]} 11.d4 {[%clk 01:35:27] [%emt 00:03:43]} 11...exd4 
{[%clk 01:34:36] [%emt 00:01:13]} 12.cxd4 {[%clk 01:35:44] [%emt 00:00:13]} 
12...d5 {[%clk 01:34:48] [%emt 00:00:18]} 13.e5 {[%clk 01:16:23] [%emt
00:19:51]} 13...Ne4 {[%clk 01:32:19] [%emt 00:02:59]} 14.Nc3 {[%clk 01:16:45]
[%emt 00:00:09]} 14...Nxc3 {[%clk 01:30:41] [%emt 00:02:07]} 15.bxc3 {[%clk
01:16:30] [%emt 00:00:46]} 15...Bf5 {[%clk 01:30:36] [%emt 00:00:34]} 16.Ra6 
{[%clk 01:10:31] [%emt 00:06:30]} 16...Qd7 {[%clk 01:20:58] [%emt 00:10:08]} 
17.Qe2 {[%clk 01:09:59] [%emt 00:01:02]} 17...Nd8 {[%clk 01:14:05] [%emt
00:07:22]} 18.Qa2 {[%clk 00:55:24] [%emt 00:15:06]} 18...c6 {[%clk 01:08:10]
[%emt 00:06:24]} 19.Ba3 {[%clk 00:53:30] [%emt 00:02:25]} 19...b4 {[%clk
00:49:20] [%emt 00:19:20]} 20.Bxb4 {[%clk 00:36:06] [%emt 00:17:54]} 20...Bxb4 
{[%clk 00:48:42] [%emt 00:01:07]} 21.cxb4 {[%clk 00:36:33] [%emt 00:00:04]} 
21...Rxb4 {[%clk 00:33:03] [%emt 00:16:09]} 22.Ra7 {[%clk 00:36:08] [%emt
00:00:55]} 22...Qc8 {[%clk 00:25:38] [%emt 00:07:55]} 23.Ra8 {[%clk 00:30:59]
[%emt 00:05:40]} 23...Qb7 {[%clk 00:21:45] [%emt 00:04:23]} 24.Ra7 {[%clk
00:29:40] [%emt 00:01:48]} 24...Qb6 {[%clk 00:19:59] [%emt 00:02:16]} 25.Ra6 
{[%clk 00:29:24] [%emt 00:00:46]} 25...Qc7 {[%clk 00:16:51] [%emt 00:03:38]} 
26.Ra7 {[%clk 00:26:01] [%emt 00:03:53]} 26...Qb6 {[%clk 00:13:48] [%emt
00:03:33]} 27.Ra6 {[%clk 00:25:49] [%emt 00:00:42]} 27...Qb5 {[%clk 00:14:00]
[%emt 00:00:17]} 28.Ra5 {[%clk 00:25:10] [%emt 00:01:10]} 28...Qb6 {[%clk
00:14:22] [%emt 00:00:08]} 29.Ra6 {[%clk 00:25:34] [%emt 00:00:06]} 29...Qb5 
{[%clk 00:14:47] [%emt 00:00:04]} 30.Ra5 {[%clk 00:26:00] [%emt 00:00:05]} 
30...Qb6 {[%clk 00:15:12] [%emt 00:00:05]} 1/2-1/2

[Event "FIDE Grand Swiss 2023"]
[Site "Villa Marina, Douglas, Isle of Man"]
[Date "2023.10.25"]
[Round "1.24"]
[White "Martirosyan, Haik M."]
[Black "Yakubboev, Nodirbek"]
[Result "1-0"]
[WhiteElo "2696"]
[BlackElo "2616"]
[EventDate "2023.10.25"]
[ECO "D41"]
[PlyCount "71"]
[BlackFideId "14203987"]
[TimeControl "40/100 + 20/50 + 15 + 30s/move"]
[WhiteFideId "13306553"]

1.d4 {[%clk 01:40:53] [%emt 00:00:06]} 1...Nf6 {[%clk 01:40:27] [%emt 00:00:31]} 
2.c4 {[%clk 01:41:16] [%emt 00:00:08]} 2...e6 {[%clk 01:40:50] [%emt 00:00:08]} 
3.Nf3 {[%clk 01:41:38] [%emt 00:00:09]} 3...d5 {[%clk 01:41:07] [%emt 00:00:13]} 
4.Nc3 {[%clk 01:41:48] [%emt 00:00:19]} 4...c5 {[%clk 01:40:38] [%emt 00:01:00]} 
5.cxd5 {[%clk 01:42:02] [%emt 00:00:15]} 5...cxd4 {[%clk 01:40:56] [%emt
00:00:13]} 6.Qxd4 {[%clk 01:40:33] [%emt 00:01:58]} 6...exd5 {[%clk 01:38:00]
[%emt 00:03:27]} 7.e4 {[%clk 01:40:30] [%emt 00:00:33]} 7...dxe4 {[%clk
01:38:16] [%emt 00:00:13]} 8.Qxd8+ {[%clk 01:40:52] [%emt 00:00:08]} 8...Kxd8 
{[%clk 01:38:45] [%emt 00:00:02]} 9.Ng5 {[%clk 01:41:09] [%emt 00:00:12]} 
9...Be6 {[%clk 01:39:07] [%emt 00:00:08]} 10.Nxe6+ {[%clk 01:41:03] [%emt
00:00:37]} 10...fxe6 {[%clk 01:39:34] [%emt 00:00:03]} 11.Bg5 {[%clk 01:41:14]
[%emt 00:00:18]} 11...Ke8 {[%clk 01:39:54] [%emt 00:00:10]} 12.O-O-O {[%clk
01:29:42] [%emt 00:12:02]} 12...Bb4 {[%clk 01:39:22] [%emt 00:01:02]} 13.Bxf6 
{[%clk 01:25:22] [%emt 00:04:52]} 13...gxf6 {[%clk 01:39:50] [%emt 00:00:02]} 
14.Nxe4 {[%clk 01:25:43] [%emt 00:00:08]} 14...Ke7 {[%clk 01:40:18] [%emt
00:00:02]} 15.a3 {[%clk 01:22:13] [%emt 00:04:00]} 15...Ba5 {[%clk 01:40:05]
[%emt 00:00:43]} 16.Bb5 {[%clk 01:16:43] [%emt 00:05:59]} 16...a6 {[%clk
00:53:39] [%emt 00:46:57]} 17.Ba4 {[%clk 01:15:02] [%emt 00:02:11]} 17...b5 
{[%clk 00:44:54] [%emt 00:09:14]} 18.Bb3 {[%clk 01:06:24] [%emt 00:09:08]} 
18...Rc8+ {[%clk 00:45:18] [%emt 00:00:06]} 19.Kb1 {[%clk 01:06:41] [%emt
00:00:13]} 19...Rc6 {[%clk 00:45:24] [%emt 00:00:24]} 20.f4 {[%clk 01:03:14]
[%emt 00:03:57]} 20...Ra7 {[%clk 00:29:44] [%emt 00:16:11]} 21.f5 {[%clk
01:01:53] [%emt 00:01:50]} 21...exf5 {[%clk 00:30:12] [%emt 00:00:03]} 22.Ng3 
{[%clk 01:01:52] [%emt 00:00:30]} 22...f4 {[%clk 00:30:32] [%emt 00:00:10]} 
23.Nf5+ {[%clk 00:49:53] [%emt 00:12:30]} 23...Kf8 {[%clk 00:31:00] [%emt
00:00:02]} 24.Rd4 {[%clk 00:46:27] [%emt 00:03:55]} 24...Rc5 {[%clk 00:29:05]
[%emt 00:02:26]} 25.Rxf4 {[%clk 00:46:02] [%emt 00:00:54]} 25...Bc7 {[%clk
00:28:14] [%emt 00:01:21]} 26.Rf2 {[%clk 00:44:36] [%emt 00:01:56]} 26...Nc6 
{[%clk 00:24:56] [%emt 00:03:49]} 27.Rd1 {[%clk 00:31:00] [%emt 00:14:05]} 
27...Ne5 {[%clk 00:17:11] [%emt 00:08:15]} 28.Nd4 {[%clk 00:28:31] [%emt
00:03:00]} 28...Ke7 {[%clk 00:17:26] [%emt 00:00:14]} 29.Rf5 {[%clk 00:27:43]
[%emt 00:01:18]} 29...Bb6 {[%clk 00:15:21] [%emt 00:02:35]} 30.g4 {[%clk
00:21:35] [%emt 00:06:38]} 30...Rd7 {[%clk 00:05:17] [%emt 00:10:34]} 31.g5 
{[%clk 00:21:09] [%emt 00:00:56]} 31...Rd6 {[%clk 00:05:46] [%emt 00:00:02]} 
32.Rff1 {[%clk 00:19:44] [%emt 00:01:54]} 32...Nc4 {[%clk 00:03:17] [%emt
00:02:58]} 33.Nf5+ {[%clk 00:15:48] [%emt 00:04:27]} 33...Rxf5 {[%clk 00:03:42]
[%emt 00:00:05]} 34.Rxf5 {[%clk 00:15:59]} 34...Rxd1+ {[%clk 00:04:05] [%emt
00:00:26]} 35.Bxd1 {[%clk 00:16:27] [%emt 00:00:03]} 35...Ne3 {[%clk 00:04:29]
[%emt 00:00:06]} 36.Rxf6 {[%clk 00:15:48] [%emt 00:01:08]} 1-0

[Event "FIDE Grand Swiss 2023"]
[Site "Villa Marina, Douglas, Isle of Man"]
[Date "2023.10.25"]
[Round "1.25"]
[White "Iturrizaga Bonelli, Eduardo"]
[Black "Nihal, Sarin"]
[Result "1/2-1/2"]
[WhiteElo "2615"]
[BlackElo "2694"]
[EventDate "2023.10.25"]
[ECO "A11"]
[PlyCount "63"]
[BlackFideId "25092340"]
[TimeControl "40/100 + 20/50 + 15 + 30s/move"]
[WhiteFideId "3901211"]

1.c4 {[%clk 01:40:56] [%emt 00:00:03]} 1...c6 {[%clk 01:39:59] [%emt 00:01:01]} 
2.Nf3 {[%clk 01:39:49] [%emt 00:01:37]} 2...d5 {[%clk 01:40:22] [%emt 00:00:07]} 
3.e3 {[%clk 01:40:15] [%emt 00:00:05]} 3...Nf6 {[%clk 01:40:45] [%emt 00:00:06]} 
4.Qc2 {[%clk 01:39:02] [%emt 00:01:44]} 4...a6 {[%clk 01:35:51] [%emt 00:05:23]} 
5.Nc3 {[%clk 01:28:56] [%emt 00:10:37]} 5...g6 {[%clk 01:16:24] [%emt 00:19:57]} 
6.d4 {[%clk 01:13:46] [%emt 00:15:40]} 6...Bg7 {[%clk 01:14:15] [%emt 00:02:37]} 
7.Be2 {[%clk 01:11:44] [%emt 00:02:33]} 7...O-O {[%clk 01:14:10] [%emt
00:00:35]} 8.O-O {[%clk 01:11:52] [%emt 00:00:22]} 8...Bg4 {[%clk 01:12:29]
[%emt 00:02:10]} 9.b3 {[%clk 01:01:49] [%emt 00:10:35]} 9...e6 {[%clk 01:09:00]
[%emt 00:03:58]} 10.Bb2 {[%clk 00:58:28] [%emt 00:03:51]} 10...Nbd7 {[%clk
01:09:20] [%emt 00:00:10]} 11.Rfd1 {[%clk 00:55:07] [%emt 00:03:51]} 11...Re8 
{[%clk 01:08:48] [%emt 00:01:02]} 12.h3 {[%clk 00:42:17] [%emt 00:13:19]} 
12...Bxf3 {[%clk 01:09:10] [%emt 00:00:09]} 13.Bxf3 {[%clk 00:42:43] [%emt
00:00:04]} 13...Nb6 {[%clk 01:08:47] [%emt 00:00:53]} 14.Ne2 {[%clk 00:31:57]
[%emt 00:11:16]} 14...Nc8 {[%clk 01:06:07] [%emt 00:03:09]} 15.Nf4 {[%clk
00:29:22] [%emt 00:03:06]} 15...Nd6 {[%clk 01:05:29] [%emt 00:01:07]} 16.Rac1 
{[%clk 00:29:34] [%emt 00:00:18]} 16...h5 {[%clk 00:50:39] [%emt 00:15:20]} 
17.g3 {[%clk 00:25:22] [%emt 00:04:43]} 17...Nf5 {[%clk 00:48:24] [%emt
00:02:45]} 18.Qe2 {[%clk 00:23:20] [%emt 00:02:31]} 18...Qd6 {[%clk 00:41:51]
[%emt 00:07:03]} 19.Bg2 {[%clk 00:19:37] [%emt 00:04:14]} 19...Rad8 {[%clk
00:41:36] [%emt 00:00:45]} 20.Bc3 {[%clk 00:16:11] [%emt 00:03:55]} 20...Qe7 
{[%clk 00:35:37] [%emt 00:06:29]} 21.Ba5 {[%clk 00:13:55] [%emt 00:02:46]} 
21...Rc8 {[%clk 00:34:44] [%emt 00:01:23]} 22.Nd3 {[%clk 00:10:42] [%emt
00:03:43]} 22...Nd7 {[%clk 00:34:49] [%emt 00:00:25]} 23.Bb4 {[%clk 00:10:37]
[%emt 00:00:36]} 23...Qd8 {[%clk 00:33:04] [%emt 00:02:14]} 24.Be1 {[%clk
00:10:43] [%emt 00:00:24]} 24...a5 {[%clk 00:28:04] [%emt 00:05:30]} 25.a4 
{[%clk 00:09:38] [%emt 00:01:36]} 25...Ra8 {[%clk 00:27:24] [%emt 00:01:10]} 
26.Bc3 {[%clk 00:05:53] [%emt 00:04:15]} 26...Ra7 {[%clk 00:19:14] [%emt
00:08:39]} 27.Qe1 {[%clk 00:05:52] [%emt 00:00:32]} 27...Qb6 {[%clk 00:17:48]
[%emt 00:01:56]} 28.Rb1 {[%clk 00:06:03] [%emt 00:00:19]} 28...Rea8 {[%clk
00:18:12] [%emt 00:00:05]} 29.Nf4 {[%clk 00:05:57] [%emt 00:00:36]} 29...Nf6 
{[%clk 00:17:38] [%emt 00:01:04]} 30.Nd3 {[%clk 00:06:11] [%emt 00:00:16]} 
30...Nd7 {[%clk 00:18:03] [%emt 00:00:06]} 31.Nf4 {[%clk 00:06:36] [%emt
00:00:04]} 31...Nf6 {[%clk 00:18:30] [%emt 00:00:04]} 32.Nd3 {[%clk 00:07:00]
[%emt 00:00:05]} 1/2-1/2